Workbook

Sheet 3DPBigList
A1: Manufacturer | B1: Model | C1: Resolution | D1: Volume (mm³) | E1: Price ($) | F1: Vol/$ | G1: Envelope (mm) | H1: Filament | I1: Country | J1: Curr | K1: Website | L1: Specs
A2: 3DP Unlimited | B2: 3DP1000 | C2: 70 | D2: =Eval(G2) -> 500000000 | E2: 15999 | F2: =D2/E2 -> 31251.95325 | G2: 1000*1000*500 | H2: 3 | I2: USA | J2: $ | K2: 3dpunlimited.com | L2: http://3dpunlimited.com/download/1316/
A3: Printrbot | B3: Go v2 (1408) | C3: 100 | D3: 56652225 | E3: 1899 | F3: 29832.66193 | G3: 609*305*305 | H3: 1.75 | I3: USA | J3: $ | K3: http://printrbot.com/ | L3: http://printrbot.com/shop/printrbot-go-v2/
A4: re.3d.org | B4: Gigabot XL | C4: 100 | D4: 273600000 | E4: 10950 | F4: 24986.30137 | G4: 600*760*600 | H4: 3 | I4: USA | J4: $ | K4: http://www.re3d.org/ | L4: http://re3d.myshopify.com/collections/gigabot-3d-printer/products/gigabot-bigger-volume
A5: re.3d.org | B5: Gigabot | C5: 100 | D5: 216000000 | E5: 8950 | F5: 24134.07821 | G5: 600*600*600 | H5: 3 | I5: USA | J5: $ | K5: http://www.re3d.org/ | L5: http://re3d.myshopify.com/collections/gigabot-3d-printer/products/minimal-assembly-gigabot
A6: Plastic Scribbler | B6: Asterid 2000 | C6: 95 | D6: 10029456 | E6: 499 | F6: 20099.11022 | G6: 204*204*241 | H6: 1.75 | I6: USA | J6: $ | K6: http://www.plasticscribbler.com/ | L6: http://www.plasticscribbler.com/store/Asterid-2000_3D_Printer
A7: EZ3D | B7: Phoenix | C7: 100 | D7: 10750000 | E7: 599 | F7: 17946.57763 | G7: 250*215*200 | H7: 1.75 | I7: Taiwan | J7: $ | K7: https://www.phoenix3dprinter.com/ | L7: https://www.phoenix3dprinter.com/phoenix.html
A8: Plastic Scribbler | B8: Asterid 2100 | C8: 95 | D8: 10029456 | E8: 569 | F8: 17626.46046 | G8: 204*204*241 | H8: 1.75 | I8: USA | J8: $ | K8: http://www.plasticscribbler.com/ | L8: http://www.plasticscribbler.com/store/Asterid-2100_3D_Printer
A9: XYZprinting | B9: XYZprinting da Vinci 1.0 | C9: 100 | D9: 8000000 | E9: 499 | F9: 16032.06413 | G9: 200*200*200 | H9: 1.75 | I9: Taiwan | J9: $ | K9: http://us.xyzprinting.com/ | L9: http://us.xyzprinting.com/us_en/Product/da-Vinci-1.0-AiO
A10: CraftUnique | B10: CraftBot 3D Printer | C10: 100 | D10: 10000000 | E10: 670 | F10: 14925.37313 | G10: 250*200*200 | H10: 1.75 | I10: Hungary | J10: $ | K10: http://www.craftunique.com/ | L10: http://www.craftunique.com/item/craftbot
A11: RoBo 3D | B11: R1 | C11: 100 | D11: 11807698 | E11: 799 | F11: 14778.09512 | G11: 254*229*203 | H11: 1.75 | I11: USA | J11: $ | K11: http://www.robo3dprinter.com/ | L11: http://www.robo3dprinter.com/collections/3d-printers/products/robo-3d-abs-model-fully-assembled
A12: Plastic Scribbler | B12: Asterid 2200 | C12: 95 | D12: 10029456 | E12: 689 | F12: 14556.53991 | G12: 204*204*241 | H12: 1.75 | I12: USA | J12: $ | K12: http://www.plasticscribbler.com/ | L12: http://www.plasticscribbler.com/store/Asterid-2200_3D_Printer
A13: Solidoodle | B13: Solidoodle 4 | C13: 100 | D13: 8365427 | E13: 599 | F13: 13965.65442 | G13: 203*203*203 | H13: 1.75 | I13: USA | J13: $ | K13: www.solidoodle.com | L13: http://www.solidoodle.com/Solidoodle4
A14: TripodMaker | B14: TripodMaker | C14: 75 | D14: =420*PI()*150^2 -> 29688050.58 | E14: =1850*1.23 -> 2275.5 | F14: 13046.82513 | G14: ⌀300*420 | H14: 1.75 | I14: Belgium | J14: € | K14: http://www.tripodmaker.com/ | L14: http://www.tripodmaker.com/product/tripodmaker/
A15: WASP Project | B15: DeltaWASP 40x70 | C15: 100 | D15: =700*PI()*200^2 -> 87964594.3 | E15: =5500*1.23 -> 6765 | F15: 13002.89642 | G15: ⌀400*700 | H15: 1.75 | I15: Italy | J15: € | K15: http://www.wasproject.it/ | L15: http://www.personalfab.it/shop/deltawasp-40x70/
A16: Printrbot | B16: Assembled Printrbot PLUS | C16: 100 | D16: =Eval(G16) -> 16387064 | E16: 1299 | F16: 12615.1378 | G16: 254*254*254 | H16: 1.75 | I16: USA | J16: $ | K16: http://printrbot.com/ | L16: http://printrbot.com/shop/assembled-printrbot-plus-2/
A17: Builder | B17: Big Builder | C17: 50 | D17: 30723000 | E17: =2295*1.23 -> 2822.85 | F17: 10883.68139 | G17: 220*210*665 | H17: 1.75 | I17: Netherlands | J17: € | K17: 3dprinter4u.com | L17: http://3dprinter4u.com/the-big-builder/
A18: 3D Stuffmaker | B18: CORE XT | C18: 50 | D18: 10560000 | E18: 995 | F18: 10613.06533 | G18: 220*240*200 | H18: 1.75 | I18: Australia | J18: $ | K18: http://www.3dstuffmaker.com/ | L18: http://www.3dstuffmaker.com/shop/specifications/core-spec.pdf
A19: Type A Machines | B19: Series 1 3D printer | C19: 50 | D19: 28372625 | E19: 2749 | F19: 10321.0713 | G19: 305*305*305 | H19: 1.75 | I19: USA | J19: $ | K19: http://www.typeamachines.com/ | L19: https://cdn.shopify.com/s/files/1/0223/2361/files/S114SA2_SPECS_d44275e1-c7c3-4f30-96c6-05aa603adebc.pdf?36831
A20: Leapfrog | B20: Creatr | C20: 50 | D20: 19500000 | E20: 1899 | F20: 10268.5624 | G20: 300*250*260 | H20: 1.75 | I20: Netherlands | J20: $ | K20: lpfrg.com | L20: http://www.lpfrg.com/creatr
A21: Mbot-3D | B21: MBot Cube | C21: 100 | D21: 8000000 | E21: 799 | F21: 10012.51564 | G21: 200*200*200 | H21: 1.75 | I21: China | J21: $ | K21: http://www.mbot3d.com/ | L21: http://www.mbot3d.com/collections/professional-3d-printing-machine/products/mbot-cube-1-weeks-lead-time
A22: Mbot-3D | B22: MBot Grid II | C22: 50 | D22: 9975000 | E22: 999 | F22: 9984.984985 | G22: 250*210*190 | H22: 1.75 | I22: China | J22: $ | K22: http://www.mbot3d.com/ | L22: http://www.mbot3d.com/collections/professional-3d-printing-machine/products/mbot-grid-ii
A23: XYZprinting | B23: XYZprinting da Vinci 1.0 AiO | C23: 100 | D23: 7600000 | E23: 799 | F23: 9511.889862 | G23: 200*200*190 | H23: 1.75 | I23: TaiWan | J23: $ | K23: http://us.xyzprinting.com/ | L23: http://us.xyzprinting.com/us_en/Product/da-Vinci-1.0
A24: Lulzbot | B24: TAZ 4 3D-printer | C24: 100 | D24: 20487500 | E24: 2194.95 | F24: 9333.925602 | G24: 298*275*250 | H24: 1.75 | I24: USA | J24: $ | K24: https://www.lulzbot.com/ | L24: https://www.lulzbot.com/products/lulzbot-taz-4-3d-printer
A25: XYZprinting | B25: XYZprinting da Vinci 2.0 Duo | C25: 100 | D25: 6000000 | E25: 649 | F25: 9244.992296 | G25: 150*200*200 | H25: 1.75 | I25: TaiWan | J25: $ | K25: http://us.xyzprinting.com/ | L25: http://us.xyzprinting.com/us_en/Product/da-Vinci-2.0
A26: Kentstrapper | B26: KENTSTRAPPER VOLTA BETA | C26: 60 | D26: 13832000 | E26: =1300*1.23 -> 1599 | F26: 8650.406504 | G26: 260*280*190 | H26: 1.75 | I26: Italy | J26: € | K26: kentstrapper.com | L26: http://kentstrapper.com/prodotto/volta-beta/
A27: Pirx | B27: Pirx | C27: 100 | D27: 6000000 | E27: =599*1.23 -> 736.77 | F27: 8143.654058 | G27: 160*250*150 | H27: 1.75 | I27: Poland | J27: € | K27: http://pirx3d.com/ | L27: http://pirx3d.com/
A28: MakerDreams | B28: iNvent One - Black | C28: 100 | D28: 11760000 | E28: =1299*1.23 -> 1597.77 | F28: 7360.25836 | G28: 280*210*200 | H28: 1.75 | I28: Italy | J28: € | K28: http://www.makerdreams.net/ | L28: http://www.makerdreams.net/#!inventone-stampante-3dprinter/ceon
A29: VAGLER | B29: V-811 | C29: 50 | D29: 13500000 | E29: 1895 | F29: 7124.010554 | G29: 270*200*250 | H29: 1.75 | I29: Malaysia | J29: $ | K29: http://www.vagler.com/ | L29: http://www.vagler.com/products/3d-printers/v-811
A30: Flashforge | B30: Creator II | C30: 100 | D30: 4893750 | E30: 700 | F30: 6991.071429 | G30: 225*145*150 | H30: 1.75 | I30: China | J30: $ | K30: http://www.ff3dp.com/ | L30: http://www.ff3dp.com/#!product/prd2/1102924331/creator-ii%2B1-roll-filament%2B1-sd-card%2Bfree-shipping
A31: German RepRap | B31: PRotos X400 CE Pro | C31: 100 | D31: 56000000 | E31: =6790*1.23 -> 8351.7 | F31: 6705.221691 | G31: 400*400*350 | H31: 1.75 | I31: Germany | J31: € | K31: https://germanreprap.com/en/ | L31: https://shop.germanreprap.com/en/X400-CE-PRO-Edition
A32: Kentstrapper | B32: GALILEO SMART | C32: 90 | D32: 6400000 | E32: =799*1.23 -> 982.77 | F32: 6512.205297 | G32: 200*200*160 | H32: 1.75 | I32: Italy | J32: € | K32: kentstrapper.com | L32: http://kentstrapper.com/prodotto/galileosmart/
A33: Delta Tower | B33: Delta Tower RTA | C33: 50 | D33: =700*PI()*160^2 -> 56297340.35 | E33: =8479*1.02 -> 8648.58 | F33: 6509.431647 | G33: ⌀320*700 | H33: 3 | I33: Switzerland | J33: CHF | K33: deltatower.ch | L33: http://shop.deltatower.ch/3d-printer/Delta-Tower-RTA-single-extruder-3D-printer-completely-Mounted-metallic::349.html
A34: MakerBot | B34: Replicator Z18 | C34: 100 | D34: =Eval(G34) -> 41815500 | E34: 6499 | F34: =D34/E34 -> 6434.143714 | G34: 300*305*457 | H34: 1.75 | I34: USA | J34: $ | K34: http://www.makerbot.com/ | L34: http://store.makerbot.com/replicator-z18#techspecs
A35: Leapfrog | B35: Creatr XL | C35: 50 | D35: =Eval(G35) -> 35880000 | E35: 5599 | F35: 6408.287194 | G35: 230*260*600 | H35: 1.75 | I35: Netherlands | J35: $ | K35: lpfrg.com | L35: http://www.lpfrg.com/creatr-xl
A36: Cubify | B36: CubePro | C36: 100 | D36: =Eval(G36) -> 17698500 | E36: 2799 | F36: 6323.151125 | G36: 285*270*230 | H36: 1.75 | I36: USA | J36: $ | K36: http://cubify.com/ | L36: http://cubify.com/en/CubePro
A37: Polar3D | B37: Polar 3D Printer | C37: 150 | D37: =152*PI()*101.5^2 -> 4919551.883 | E37: 799 | F37: 6157.136274 | G37: ⌀203*152 | H37: 1.75 | I37: USA | J37: $ | K37: http://polar3d.com/ | L37: http://shop.polar3d.com/collections/frontpage/products/polar-3d-printer
A38: WASP Project | B38: PowerWASP EVO | C38: 100 | D38: =Eval(G38) -> 10647000 | E38: =1440*1.23 -> 1771.2 | F38: 6011.178862 | G38: 260*195*210 | H38: 1.75 | I38: Italy | J38: € | K38: http://www.wasproject.it/ | L38: http://www.personalfab.it/shop/powerwasp-evo/
A39: Marcha technology | B39: bq Witbox | C39: 50 | D39: 12474000 | E39: =1690*1.23 -> 2078.7 | F39: 6000.865926 | G39: 210*297*200 | H39: 1.75 | I39: Spain | J39: € | K39: http://www.marchatechnology.es/ | L39: http://www.bq.com/gb/products/witbox.html
A40: Makergear | B40: M2 | C40: 50 | D40: 10467086 | E40: 1775 | F40: 5896.949859 | G40: 203*254*203 | H40: 1.75 | I40: USA | J40: $ | K40: http://www.makergear.com/ | L40: http://www.makergear.com/products/m-series-3d-printers
A41: VAGLER | B41: V-821 | C41: 50 | D41: 13500000 | E41: 2295 | F41: 5882.352941 | G41: 270*200*250 | H41: 1.75 | I41: Malaysia | J41: $ | K41: http://www.vagler.com/ | L41: http://www.vagler.com/products/3d-printers/v-821
A42: Sharebot | B42: XXL | C42: 100 | D42: 28000000 | E42: =3900*1.23 -> 4797 | F42: 5836.981447 | G42: 700*200*200 | H42: 1.75 | I42: Italy | J42: € | K42: http://www.sharebot.it/ | L42: http://www.sharebot.it/index.php/3d-printers/sharebot-xxl/?lang=en&lang=en
A43: Tinkerine | B43: Ditto Plus | C43: 100 | D43: 8935500 | E43: 1549 | F43: 5768.560362 | G43: 210*185*230 | H43: 1.75 | I43: Canada | J43: $ | K43: tinkerine.com | L43: http://www.tinkerine.com/store/3d-printers/ditto-plus/
A44: PEARL | B44: FreeSculpt 3D-Drucker EX2-Plus | C44: 100 | D44: 6244500 | E44: =899*1.23 -> 1105.77 | F44: 5647.196072 | G44: 230*150*181 | H44: 1.75 | I44: Germany | J44: € | K44: http://www.pearl.de/ | L44: http://www.pearl.de/a-PV8706-1122.shtml
A45: Printrbot | B45: Assembled Simple | C45: 100 | D45: 3375000 | E45: 599 | F45: 5634.390651 | G45: 150*150*150 | H45: 1.75 | I45: USA | J45: $ | K45: http://printrbot.com/ | L45: http://printrbot.com/shop/assembled-simple-metal-with-heated-bed/
A46: PEARL | B46: FreeSculpt 3D-Drucker EX2 | C46: 100 | D46: 6210000 | E46: =899*1.23 -> 1105.77 | F46: 5615.996093 | G46: 230*150*180 | H46: 1.75 | I46: Germany | J46: € | K46: http://www.pearl.de/ | L46: http://www.pearl.de/a-PV8700-1122.shtml
A47: Sharebot | B47: Next Generation | C47: 50 | D47: 10000000 | E47: =1500*1.23 -> 1845 | F47: 5420.054201 | G47: 250*200*200 | H47: 1.75 | I47: Italy | J47: € | K47: http://www.sharebot.it/ | L47: http://www.sharebot.it/index.php/sharebot-next-generation/?lang=en&lang=en
A48: Something 3D | B48: Royal | C48: 60 | D48: 27000000 | E48: 4995 | F48: 5405.405405 | G48: 300*300*300 | H48: 1.75 or 3 | I48: Israel | J48: $ | K48: http://www.something3d.com/ | L48: http://www.something3d.com/our-printers#20
A49: Zion3D | B49: StingRay6 Complete | C49: 100 | D49: 4410944 | E49: 849 | F49: 5195.458186 | G49: 164*164*164 | H49: 3 or 1.75 | I49: USA | J49: $ | K49: zion3d.com | L49: http://www.makergeeks.com/st3dpr17mabu.html?plan=1
A50: Airwolf 3D | B50: AW3 HDX | C50: 60 | D50: 18000000 | E50: 3495 | F50: 5150.214592 | G50: 300*200*300 | H50: 3 | I50: USA | J50: $ | K50: http://airwolf3d.com/ | L50: http://airwolf3d.com/store/products/large-3d-printer-model-aw3d-hd-2/
A51: Intelligent Machine Inc. | B51: Metalbot | C51: 100 | D51: 6084000 | E51: 1190 | F51: 5112.605042 | G51: 195*195*160 | H51: 1.75 | I51: Taiwan | J51: $ | K51: http://www.imprint3d.com/ | L51: http://www.imprint3d.com/
A52: VAGLER | B52: V-822 | C52: 50 | D52: 12500000 | E52: 2495 | F52: 5010.02004 | G52: 250*200*250 | H52: 1.75 | I52: Malaysia | J52: $ | K52: http://www.vagler.com/ | L52: http://www.vagler.com/products/3d-printers/v-822
A53: Flashforge | B53: Creator | C53: 100 | D53: 4893750 | E53: 977 | F53: 5008.955988 | G53: 225*145*150 | H53: 1.75 | I53: China | J53: $ | K53: http://www.ff3dp.com/ | L53: http://www.ff3dp.com/#!product/prd2/1102918641/creator%2B2-rolls-filaments%2B1-sd-card%2Bfree-shipping
A54: PEARL | B54: FreeSculpt 3D-Drucker EX1-Plus | C54: 150 | D54: 4893750 | E54: =799*1.23 -> 982.77 | F54: 4979.547605 | G54: 225*145*150 | H54: 1.75 | I54: Germany | J54: € | K54: http://www.pearl.de/ | L54: http://www.pearl.de/a-PV8610-1122.shtml
A55: Stellamove | B55: Rappy32 | C55: 100 | D55: 6156000 | E55: 1249 | F55: 4928.742994 | G55: 180*190*180 | H55: 1.75 | I55: South Korea | J55: $ | K55: http://www.stellamove.com/ | L55: http://www.stellamove.com/#!innovationeng/cxx7
A56: Eckertech | B56: ecksbot 2014 fully assembled | C56: 100 | D56: 5400000 | E56: 1119.5 | F56: 4823.581956 | G56: 200*200*135 | H56: 1.75 | I56: Canada | J56: $ | K56: http://www.eckertech.com/ | L56: http://www.eckertech.com/ecksbot-2014-fully-assembled-3d-printer-in-red-black-abs/
A57: Builder | B57: Builder | C57: 50 | D57: 8085000 | E57: =1375*1.23 -> 1691.25 | F57: 4780.487805 | G57: 220*210*175 | H57: 1.75 | I57: Netherlands | J57: € | K57: 3dprinter4u.com | L57: http://3dprinter4u.nl/product/builder-3d-printer-red-incl-display/
A58: ZMorph | B58: Zmorph 2.0.S | C58: 25 | D58: 8918250 | E58: =6256*0.3 -> 1876.8 | F58: 4751.838235 | G58: 235*230*165 | H58: 3 or 1.75 | I58: Poland | J58: zł | K58: http://zmorph3d.com/ | L58: http://zmorph3d.com/specifications/
A59: ORD solutions inc | B59: Rova 3D (MH3000 v2) | C59: 25 | D59: 16467456 | E59: 3495 | F59: 4711.718455 | G59: 284*302*192 | H59: 1.75 | I59: Canada | J59: $ | K59: http://www.ordsolutions.com/ | L59: http://www.ordsolutions.com/the-rova3d-version-2-of-the-mh3000-ships-january-2015/
A60: 3Dison | B60: Edison H700 | C60: 25 | D60: 41615000 | E60: =7200*1.23 -> 8856 | F60: 4699.074074 | G60: 290*205*700 | H60: 1.75 | I60: Netherlands | J60: € | K60: http://www.3disonprinter.nl/ | L60: http://www.3disonprinter.nl/en-3dison-printers/comparison-table.html
A61: Airwolf 3D | B61: AW3D XL Assembled | C61: 25 | D61: 10680000 | E61: 2295 | F61: 4653.594771 | G61: 300*200*178 | H61: 3 | I61: USA | J61: $ | K61: http://airwolf3d.com/ | L61: http://airwolf3d.com/store/products/buy-a-3d-printer-xl/
A62: Leapfrog | B62: Creatr Hs | C62: 50 | D62: 13608000 | E62: 2999 | F62: 4537.512504 | G62: 270*280*180 | H62: 1.75 | I62: Netherlands | J62: $ | K62: lpfrg.com | L62: http://www.lpfrg.com/creatr-hs
A63: Cubify | B63: CubePro Duo | C63: 100 | D63: 15028200 | E63: 3399 | F63: 4421.359223 | G63: 242*270*230 | H63: 1.75 | I63: USA | J63: $ | K63: http://cubify.com/ | L63: http://cubify.com/en/CubePro
A64: Flashforge | B64: Dreamer | C64: 100 | D64: 4830000 | E64: 1099 | F64: 4394.904459 | G64: 230*150*140 | H64: 1.75 | I64: China | J64: $ | K64: http://www.ff3dp.com/ | L64: http://www.ff3dp.com/#!dreamer/cwdv
A65: WASP Project | B65: DeltaWASP 20×40 | C65: 50 | D65: =400*PI()*100^2 -> 12566370.61 | E65: =2370*1.23 -> 2915.1 | F65: 4310.785433 | G65: ⌀200*400 | H65: 1.75 | I65: Italy | J65: € | K65: http://www.wasproject.it/ | L65: http://www.personalfab.it/shop/deltawasp-20x40/
A66: Ultimaker | B66: Ultimaker 2 | C66: 20 | D66: =Eval(G66) -> 10608750 | E66: 2499 | F66: =D66/E66 -> 4245.198079 | G66: 230*225*205 | H66: 3 | I66: Netherlands | J66: $ | K66: https://www.ultimaker.com/ | L66: https://www.ultimaker.com/pages/our-printers/ultimaker-2
A67: Airwolf 3D | B67: AW3D HD2x | C67: 60 | D67: 16800000 | E67: 3995 | F67: 4205.256571 | G67: 280*200*300 | H67: 3 | I67: USA | J67: $ | K67: http://airwolf3d.com/ | L67: http://airwolf3d.com/store/products/large-3d-printer-for-sale-now-aw3d-hd2x/
A68: Sasan Seyedi | B68: Cyrus 3D printer | C68: 20 | D68: 7605000 | E68: =1499*1.23 -> 1843.77 | F68: 4124.70102 | G68: 195*195*200 | H68: 1.75 | I68: Netherlands | J68: € | K68: http://www.cyrusprinter.nl/ | L68: http://webcache.googleusercontent.com/search?q=cache:qi72IV1wCzUJ:www.cyrusprinter.nl/+&cd=1&hl=en&ct=clnk&gl=us
A69: 3novatica | B69: Flexa Duo Promcja | C69: 62.5 | D69: 8303000 | E69: =6763.77*0.3 -> 2029.131 | F69: 4091.899439 | G69: 190*190*230 | H69: 1.75 | I69: Poland | J69: zł | K69: http://3novatica.com/en/ | L69: http://3novatica.com/en/index.php?controller=attachment&id_attachment=1
A70: Shark | B70: Shark | C70: 100 | D70: 7986000 | E70: 1980 | F70: 4033.333333 | G70: 220*220*165 | H70: 1.75 or 3 | I70: Lebanon | J70: $ | K70: https://www.shark3dprinter.com/ | L70: https://www.shark3dprinter.com/store.php
A71: 3D Stuffmaker | B71: Gen2 PRO | C71: 80 | D71: 8000000 | E71: 1995 | F71: 4010.025063 | G71: 200*200*200 | H71: 1.75 | I71: Australia | J71: $ | K71: http://www.3dstuffmaker.com/ | L71: http://www.3dstuffmaker.com/shop/index.php?route=product/product&path=59&product_id=1117
A72: Hyrel 3D | B72: E1 (Tinkerer) | C72: 100 | D72: 8000000 | E72: 1995 | F72: 4010.025063 | G72: 200*200*200 | H72: 1.75 | I72: USA | J72: $ | K72: http://www.hyrel3d.com/ | L72: http://www.hyrel3d.com/e1/
A73: Tinkerine | B73: Dittopro | C73: 50 | D73: 7610625 | E73: 1899 | F73: 4007.701422 | G73: 225*165*205 | H73: 1.75 | I73: Canada | J73: $ | K73: http://www.tinkerine.com/ | L73: http://www.tinkerine.com/store/3d-printers/ditto-pro/
A74: PEARL | B74: FreeSculpt 3D-Drucker EX1 | C74: 150 | D74: 4893750 | E74: =999*1.23 -> 1228.77 | F74: 3982.641178 | G74: 225*145*150 | H74: 1.75 | I74: Germany | J74: € | K74: http://www.pearl.de/ | L74: http://www.pearl.de/a-PV8611-1122.shtml
A75: Weistek | B75: Ideawerk WT150 | C75: 180 | D75: 3150000 | E75: 800 | F75: 3937.5 | G75: 150*150*140 | H75: 1.75 | I75: China | J75: $ | K75: ideawerk3dprinter.com | L75: http://ecx.images-amazon.com/images/I/C1y-V6XJAZS.pdf
A76: German RepRap | B76: NEO 3D printer | C76: 100 | D76: 3375000 | E76: =699*1.23 -> 859.77 | F76: 3925.468439 | G76: 150*150*150 | H76: 1.75 | I76: Germany | J76: € | K76: https://germanreprap.com/en/ | L76: https://shop.germanreprap.com/en/product?info=294
A77: Zortrax | B77: Zortrax M200 | C77: 90 | D77: 7400000 | E77: 1899 | F77: 3896.787783 | G77: 200*200*185 | H77: 1.75 | I77: Poland | J77: $ | K77: https://zortrax.com/ | L77: https://zortrax.com/product-details/technical-details
A78: Portabee | B78: Portabee Go | C78: 50 | D78: 2304000 | E78: 595 | F78: 3872.268908 | G78: 120*160*120 | H78: 1.75 | I78: Singapore | J78: $ | K78: http://portabee3dprinter.com/ | L78: http://portabee3dprinter.com/shop/portabee-go/
A79: Lewhie | B79: Sneaker | C79: 50 | D79: 14112000 | E79: =2995*1.23 -> 3683.85 | F79: 3830.774869 | G79: 320*210*210 | H79: 1.75 | I79: Spain | J79: € | K79: http://www.lewihe.com/ | L79: http://www.lewihe.com/product/sneaker/
A80: 3D Kits | B80: Status 3D printer | C80: 125 | D80: 8615125 | E80: =1850*1.23 -> 2275.5 | F80: 3786.036036 | G80: 205*205*205 | H80: 1.75 | I80: Spain | J80: € | K80: http://www.3dkits.es/ | L80: http://www.3dkits.es/english/status-3d-printer/status-especifications/
A81: Hyrel 3D | B81: E2 (Hobbyist) | C81: 100 | D81: 8000000 | E81: 2145 | F81: 3729.60373 | G81: 200*200*200 | H81: 1.75 | I81: USA | J81: $ | K81: http://www.hyrel3d.com/ | L81: http://www.hyrel3d.com/e2/
A82: iRapid | B82: IRAPID BLACK 3D-PRINTER | C82: 50 | D82: 4500000 | E82: =999*1.23 -> 1228.77 | F82: 3662.198784 | G82: 250*150*120 | H82: 1.75 | I82: Germany | J82: € | K82: http://www.irapid.de/ | L82: http://www.irapid.de/index.php?id_product=18&controller=product&id_lang=2
A83: Flashforge | B83: Creator Pro | C83: 100 | D83: 4893750 | E83: 1349 | F83: 3627.687176 | G83: 225*145*150 | H83: 1.75 | I83: China | J83: $ | K83: http://www.ff3dp.com/ | L83: http://www.ff3dp.com/#!creator-pro/cgxl
A84: Hyvision Systems | B84: Cubicon Single (3DP-110F) | C84: 100 | D84: 9600000 | E84: 2700 | F84: 3555.555556 | G84: 200*200*240 | H84: 1.75 | I84: Korea | J84: $ | K84: http://www.hyvision.co.kr/ | L84: http://www.hyvision.co.kr/english/product/view.asp?idx=55&gopage=1&cond=&word=&cate1=1003&cate2=2007
A85: Cubify | B85: Cube | C85: 70 | D85: 3511808 | E85: 999 | F85: 3515.323323 | G85: 152*152*152 | H85: 1.75 | I85: USA | J85: $ | K85: http://cubify.com/ | L85: http://cubify.com/en/Cube/TechSpecs
A86: Dreammaker | B86: DreamMaker Max | C86: 50 | D86: 8000000 | E86: =14900*0.16 -> 2384 | F86: 3355.704698 | G86: 200*200*200 | H86: 1.75 | I86: China | J86: ¥ | K86: http://www.dreammaker.cc/ | L86: http://www.dfrobot.com.cn/goods-717.html
A87: Hyrel 3D | B87: E3 (Apprentice) | C87: 100 | D87: 8000000 | E87: 2495 | F87: 3206.412826 | G87: 200*200*200 | H87: 1.75 | I87: USA | J87: $ | K87: http://www.hyrel3d.com/ | L87: http://www.hyrel3d.com/e3/
A88: Something 3D | B88: Han | C88: 60 | D88: 8000000 | E88: 2575 | F88: 3106.796117 | G88: 200*200*200 | H88: 1.75 or 3 | I88: Israel | J88: $ | K88: http://www.something3d.com/ | L88: http://www.something3d.com/our-printers#20
A89: MakerBot | B89: Replicator 2 | C89: 100 | D89: 6758775 | E89: 2199 | F89: 3073.567531 | G89: 285*153*155 | H89: 1.75 | I89: USA | J89: $ | K89: http://www.makerbot.com/ | L89: http://store.makerbot.com/replicator2
A90: CB-Printer | B90: 3D Printer CB-printer.com | C90: 100 | D90: 7200000 | E90: =1950*1.23 -> 2398.5 | F90: 3001.876173 | G90: 200*200*180 | H90: 1.75 | I90: Poland | J90: € | K90: http://cb-printer.com/en/ | L90: http://cb-printer.com/en/shop/3d-printer-cb-printer-com/
A91: Hyrel 3D | B91: E4 (Journeyman) | C91: 100 | D91: 8000000 | E91: 2695 | F91: 2968.460111 | G91: 200*200*200 | H91: 1.75 | I91: USA | J91: $ | K91: http://www.hyrel3d.com/ | L91: http://www.hyrel3d.com/e4/
A92: Hyrel 3D | B92: E5 (Professional) | C92: 100 | D92: 8000000 | E92: 2695 | F92: 2968.460111 | G92: 200*200*200 | H92: 1.75 | I92: USA | J92: $ | K92: http://www.hyrel3d.com/ | L92: http://www.hyrel3d.com/e5/
A93: Cubify | B93: EKOCYCLE Cube | C93: 70 | D93: 3511808 | E93: 1199 | F93: 2928.947456 | G93: 152*152*152 | H93: 1.75 | I93: USA | J93: $ | K93: http://cubify.com/ | L93: http://cubify.com/en/EKOCYCLE
A94: SeeMeCNC | B94: ORION Delta 3D-printer | C94: 125 | D94: =203*PI()*76^2 -> 3683605.351 | E94: 1299 | F94: 2835.723904 | G94: ⌀152*203 | H94: 1.75 | I94: USA | J94: $ | K94: http://seemecnc.com/ | L94: http://seemecnc.com/products/orion-delta-3d-printer
A95: Cubify | B95: CubePro Trio | C95: 100 | D95: =Eval(G95) -> 12420000 | E95: 4399 | F95: 2823.368947 | G95: 200*270*230 | H95: 1.75 | I95: USA | J95: $ | K95: http://cubify.com/ | L95: http://cubify.com/en/CubePro
A96: 3Dison | B96: Edison Pro | C96: 25 | D96: 15159750 | E96: =4500*1.23 -> 5535 | F96: 2738.888889 | G96: 290*205*255 | H96: 1.75 | I96: Netherlands | J96: € | K96: http://www.3disonprinter.nl/ | L96: http://www.3disonprinter.nl/en-3dison-printers/comparison-table.html
A97: MakerBot | B97: Replicator 5 | C97: 100 | D97: 7522200 | E97: 2899 | F97: 2594.756813 | G97: 252*199*150 | H97: 1.75 | I97: USA | J97: $ | K97: http://www.makerbot.com/ | L97: http://store.makerbot.com/replicator
A98: CEL | B98: Robox | C98: 20 | D98: 3150000 | E98: =849*1.56 -> 1324.44 | F98: =D98/E98 -> 2378.363686 | G98: 210*150*100 | H98: 1.75 | I98: UK | J98: £ | K98: http://robox.cel-uk.com/ | L98: http://www.cel-robox.com/technical/
A99: 3Dison | B99: Edison Multi | C99: 25 | D99: 7192800 | E99: =2500*1.23 -> 3075 | F99: 2339.121951 | G99: 270*148*180 | H99: 1.75 | I99: Netherlands | J99: € | K99: http://www.3disonprinter.nl/ | L99: http://www.3disonprinter.nl/en-3dison-printers/comparison-table.html
A100: MakerBot | B100: Replicator 2X | C100: 100 | D100: 6337500 | E100: 2799 | F100: 2264.201501 | G100: 250*169*150 | H100: 1.75 | I100: USA | J100: $ | K100: http://www.makerbot.com/ | L100: http://store.makerbot.com/replicator2x
A101: Hyrel 3D | B101: System 30 | C101: 20 | D101: 9000000 | E101: 3995 | F101: 2252.81602 | G101: 225*200*200 | H101: 1.75 | I101: USA | J101: $ | K101: http://www.hyrel3d.com/ | L101: http://www.hyrel3d.com/system-30/
A102: Zeepro | B102: Zim | C102: 50 | D102: =Eval(Table3[[#This Row],[Envelope (mm)]]) -> 3375000 | E102: 1499 | F102: =Table3[[#This Row],[Volume (mm³)]]/E102 -> 2251.501001 | G102: 150*150*150 | H102: 1.75 | I102: USA | J102: $ | K102: http://zeepro.com/ | L102: http://zeepro.com/products/zim_black
A103: Tinkerine | B103: Litto | C103: 100 | D103: =Eval(G103) -> 2835000 | E103: 1299 | F103: =D103/E103 -> 2182.448037 | G103: 135*120*175 | H103: 1.75 | I103: Canada | J103: $ | K103: tinkerine.com | L103: http://www.tinkerine.com/store/3d-printers/litto/
A104: IonCoreLtd | B104: Zinter PRO 3D Printer | C104: 100 | D104: 8000000 | E104: =2350*1.56 -> 3666 | F104: 2182.214948 | G104: 200*200*200 | H104: 1.75 | I104: UK | J104: £ | K104: http://www.ioncoretechnology.com/ | L104: http://www.ioncoretechnology.com/zinter/zinter-pro/
A105: Leapfrog | B105: Xeed | C105: 50 | D105: 20790000 | E105: 9699 | F105: 2143.519951 | G105: 350*270*220 | H105: 1.75 | I105: Netherlands | J105: $ | K105: lpfrg.com | L105: http://www.lpfrg.com/xeed
A106: Afinia | B106: Afinia H480 | C106: 150 | D106: 2646000 | E106: 1299 | F106: 2036.951501 | G106: 140*140*135 | H106: 1.75 | I106: USA | J106: $ | K106: http://www.afinia.com/ | L106: http://www.afinia.com/wp-content/uploads/Afinia-H480-SellSheet-lo.pdf
A107: PP3DP | B107: UP! mini | C107: 200 | D107: 1728000 | E107: 899 | F107: 1922.135706 | G107: 120*120*120 | H107: 1.75 | I107: China | J107: $ | K107: http://www.up3dusa.com/ | L107: http://www.up3dusa.com/#!mini-specs/c61i
A108: AIO Robotics | B108: Zeus | C108: 80 | D108: 4525740 | E108: 2499 | F108: 1811.020408 | G108: 204*153*145 | H108: 1.75 | I108: USA | J108: $ | K108: http://www.zeus.aiorobotics.com/ | L108: http://media.wix.com/ugd/07075b_9890c7f439654b448963645bce3b0d81.pdf
A109: Pirate 3D | B109: Buccaneer 3D printer | C109: 50 | D109: 1973622 | E109: 1099 | F109: 1795.834395 | G109: 137*98*147 | H109: 1.75 | I109: Singapore | J109: $ | K109: http://pirate3d.com/ | L109: http://pirate3d.com/the-buccaneer/
A110: AOD | B110: AOD-Artist | C110: 100 | D110: 8000000 | E110: =28800*0.16 -> 4608 | F110: 1736.111111 | G110: 200*200*200 | H110: 1.75 | I110: China | J110: ¥ | K110: http://www.aod3d.com/ | L110: http://www.aod3d.com/p_l.aspx?id=125
A111: Sharebot | B111: Kiwi-3D | C111: 100 | D111: 1400000 | E111: =696*1.23 -> 856.08 | F111: 1635.361181 | G111: 140*100*100 | H111: 1.75 | I111: Italy | J111: € | K111: http://www.sharebot.it/ | L111: http://www.sharebot.it/index.php/3d-printers/sharebot-kiwi-3d-kit/?lang=en
A112: PP3DP | B112: UP! Plus 2 | C112: 150 | D112: 2646000 | E112: 1649 | F112: 1604.608854 | G112: 140*140*135 | H112: 1.75 | I112: China | J112: $ | K112: http://www.up3dusa.com/ | L112: http://www.pp3dp.com/index.php?page=shop.product_details&flypage=flypage.tpl&product_id=10&category_id=1&option=com_virtuemart&Itemid=37
A113: be3D | B113: DeeGreen | C113: 100 | D113: 3375000 | E113: =1815*1.23 -> 2232.45 | F113: 1511.791977 | G113: 150*150*150 | H113: 1.75 | I113: Czech Republic | J113: € | K113: http://www.be3d.cz/ | L113: http://www.be3d.cz/en/shop/3-deegreen
A114: miniFactory | B114: mini | C114: 20 | D114: 2940000 | E114: =1590*1.23 -> 1955.7 | F114: 1503.298052 | G114: 140*150*140 | H114: 1.75 | I114: Finland | J114: € | K114: http://www.minifactory.fi/ | L114: http://www.minifactory.fi/3d-tulostin/
A115: Beeverycreative | B115: BEETHEFIRST | C115: 100 | D115: 3206250 | E115: =1990*1.23 -> 2447.7 | F115: 1309.903174 | G115: 190*135*125 | H115: 1.75 | I115: Portugal | J115: € | K115: https://www.beeverycreative.com/ | L115: https://www.beeverycreative.com/client/files/0000000001/1360.pdf
A116: Trimaker | B116: T-element | C116: 100 | D116: 7200000 | E116: 5622.89 | F116: 1280.480322 | G116: 200*200*180 | H116: 3 | I116: Argentina | J116: $ | K116: http://www.trimaker.com/ | L116: http://www.trimaker.com/en/t-element/
A117: Multistation | B117: 3DESIR Plus 2 | C117: 150 | D117: 2646000 | E117: =1685*1.23 -> 2072.55 | F117: 1276.688138 | G117: 140*140*135 | H117: 1.75 | I117: France | J117: € | K117: http://www.multistation.com/ | L117: http://proto3dshop.multistation.com/en/machines/22-3desir-v2.html
A118: MakerBot | B118: Replicator Mini | C118: 100 | D118: 1250000 | E118: 1375 | F118: 909.0909091 | G118: 100*100*125 | H118: 1.75 | I118: USA | J118: $ | K118: http://www.makerbot.com/ | L118: http://store.makerbot.com/replicator-mini
A119: Hot Proceed | B119: Blade-1 | C119: 200 | D119: 1000000 | E119: 1642 | F119: 609.0133983 | G119: 100*100*100 | H119: 1.75 | I119: Japan | J119: $ | K119: http://hotproceed.com/ | L119: http://hotproceed.com/wiki/index.php?Blade-1
A121: Last updated: 12/7/2014 | B121: Version: 1.2
A123: Currency | B123: Conversion Factor
A124: £ | B124: 1.56
A125: € | B125: 1.23
A126: zł | B126: 0.3
A127: ￥ | B127: 0.16
A128: CHF | B128: 1.02

Sheet Removed
A1: Shop | B1: Country | C1: Manufacturer | D1: Model | E1: Assembled | F1: Speed | G1: Resolution | H1: Build envelope | I1: Build Volume | J1: Vol/$ | K1: Technology | L1: Price | M1: Lead time | N1: Availability | O1: Reason Removed
A2: WillyBot Cafe | B2: Korea | C2: Backho (White Tiger) company | D2: Willybot 1.3 | E2: DIY kit | H2: 200*200*240 | I2: =Eval(H2) -> 9600000 | J2: =I2/L2 -> 12000 | K2: FFF | L2: 800 | M2: 7 days | O2: Bad reviews, no shop?
A3: Sumpod | B3: UK | C3: Sumpod | D3: Sumpod Mega | E3: Yes | H3: 600*600*600 | I3: =Eval(H3) -> 216000000 | J3: =I3/L3 -> 44344.07719 | K3: FFF | L3: 4871 | M3: 4 weeks | O3: Scammer
A4: Piecemaker | B4: USA | C4: Piecemaker | D4: BigRep ONE | G4: 1147*1000*1188 | H4: =Eval(G4) -> 1362636000 | I4: =H4/L4 -> 34939.38462 | J4: FFF | L4: 39000 | M4: - | O4: Duplicate
A5: InDimension3 | B5: USA | C5: inDimension3 | D5: Glacier Summit - Dual Head Printer | G5: 400*400*500 | H5: =Eval(G5) -> 80000000 | I5: =H5/L5 -> 13335.55593 | J5: FFF | L5: 5999 | M5: In Stock | O5: OOB
A6: InDimension3 | B6: USA | C6: inDimension3 | D6: Glacier Steel - Dual Head Printer | H6: 300*300*400 | I6: =Eval(H6) -> 36000000 | J6: =I6/M6 -> 10909.09091 | K6: FFF | M6: 3300 | N6: Sold out | O6: OOB
A7: Solidoodle | B7: USA | C7: Solidoodle | D7: Solidoodle 2, Pro | H7: 152*152*152 | I7: =Eval(H7) -> 3511808 | J7: =I7/M7 -> 5862.784641 | K7: FFF | M7: 599 | N7: 3-5 days | O7: Obsolete
A8: Solidoodle | B8: USA | C8: Solidoodle | D8: Solidoodle 3D Printer, 3nd Generation | H8: 203*203*203 | I8: =Eval(H8) -> 8365427 | J8: =I8/M8 -> 10469.87109 | K8: FFF | M8: 799 | N8: 3-5 days | O8: OOB
A9: InDimension3 | B9: USA | C9: InDimension3 | D9: Glacier Summit Plus | F9: 406*406*457 | G9: =Eval(F9) -> 75330052 | H9: =G9/K9 -> 10050.7074 | I9: FFF | K9: 7495 | L9: 2 weeks | O9: OOB
A10: Zbot | B10: China | C10: Zbot.cc | D10: Zbot | F10: 250*250*200 | G10: =Eval(F10) -> 12500000 | H10: =G10/K10 -> 2777.777778 | I10: FFF | K10: 4500 | M10: - | O10: Obsolete
A11: WASP Project | B11: DeltaWASP 60×100 | C11: 100 | D11: ⌀600*1000 | E11: =1000*PI()*300^2 -> 282743338.8 | F11: =E11/I11 ->  | G11: FFF | I11: -- | J11: Italy | K11: € | L11: http://www.wasproject.it/ | M11: http://www.personalfab.it/shop/deltawasp-60-100/ | O11: no pricing available
A12: Sumpod | B12: Sumpod Aluminium | D12: 240*240*150 | E12: =Eval(D12) -> 8640000 | F12: 6718.506998 | G12: FFF | I12: 1286 | J12: UK | O12: Scammer
A13: Solidscape | B13: 3Z Studio | D13: 152*152*51 | E13: 1178304 | F13: 47.80137931 | G13: Smooth Curvature Printing | I13: 24650 | J13: USA | O13: Obsolete | Q13: http://www.solid-scape.com/sites/default/files/public/3z-pro-data-sheet-12-20-2012-solidscape_1.pdf
A14: Solido | B14: SD300 Pro | C14: 168 | D14: 160*210*135 | E14: 4536000 | F14: 453.8269135 | G14: LOM | I14: 9995 | J14: USA | O14: OOB
A15: Sharebot | B15: Sharebot Pro | D15: 200*200*200 | E15: 8000000 | F15: 4491.858506 | G15: FFF | I15: 1781 | J15: Italy | K15: $ | O15: Obsolete
A16: Printeer | B16: Printeer | D16: 150*100*125 | E16: 1875000 | F16: 3415.300546 | G16: FFF | H16: 1.75 | I16: 549 | J16: USA | K16: $ | O16: OOB
A17: Piecemake | B17: Piecemake | D17: 178*178*178 | E17: 5639752 | F17: 4341.61047 | G17: FFF | I17: 1299 | J17: USA | O17: no pricing available
A18: ORD solutions inc | B18: MH3000 - 5 Color/Material 3D | D18: 284*302*192 | E18: 16467456 | F18: 6336.073875 | G18: FFF | I18: 2599 | J18: Canada | L18: http://www.ordsolutions.com/ | O18: Obsolete
A19: Omni3d | B19: Architect | D19: 310*410*310 | E19: 39401000 | F19: 6329.477912 | G19: FFF | I19: 6225 | J19: Poland | L19: http://omni3d.com/en/ | O19: Obsolete
A20: Omni3d | B20: Factory 1.0 | D20: 310*310*310 | E20: 29791000 | F20: 7599.744898 | G20: FFF | I20: 3920 | J20: Poland | L20: http://omni3d.com/en/ | O20: Obsolete
A21: MOTA | B21: MOTA 3D Printe | C21: 100 | D21: 165*155*155 | E21: 3964125 | F21: 4961.357947 | G21: FFF | I21: 799 | J21: USA | L21: https://www.mota.com | M21: https://www.mota.com/3d-printer/ | O21: no pricing available
A22: Mojreprap | B22: Profabb GATE LE | D22: 190*220*230 | E22: 9614000 | F22: 6956.58466 | G22: FFF | I22: 1382 | J22: Poland | O22: Obsolete
A23: Matsuura Machinery | B23: LUMEX Avance-25 | D23: 250*250*180 | E23: 11250000 | F23: 13.29787234 | G23: SLS | I23: 846000 | J23: Japan | K23: http://www.matsuura.co.jp/english/ | L23: http://www.matsuura.co.jp/english/pdf/2013/Matsuura_PR_LUMEX_Avance-25_Release_in_North_America.pdf | O23: no pricing available
A24: Marcha technology | B24: Witbox Helios | D24: 200*200*200 | E24: 8000000 | F24: 2874.59576 | G24: FFF | I24: 2783 | J24: Spain | O24: Obsolete
A25: Lulzbot | B25: AO-101 3D Printer | D25: 200*190*100 | E25: 3800000 | F25: 2202.898551 | G25: FFF | I25: 1725 | J25: USA | O25: DC
A26: Kikai labs | B26: T125 | D26: 200*200*195 | E26: 7800000 | F26: 3074.497438 | G26: FFF | I26: 2537 | J26: Argentina | O26: DC
A27: Kikai labs | B27: T140 | C27: 80 | D27: 200*200*195 | E27: 7800000 | F27: 3074.497438 | G27: FFF | H27: 1.75 | I27: 2537 | J27: Argentina | K27: $ | L27: http://kikailabs.com.ar/documents/10180/63867/Manual+de+Usuario+modelo+Maker+T-140.pdf | O27: no pricing available
A28: Kentstrapper | B28: MENDEL MAX | C28: 60 | D28: 400*400*300 | E28: 48000000 | F28: 19200 | G28: FFF | H28: 1.75 | I28: 2500 | J28: Italy | L28: http://www.makerwise.com/3d-printer/kentstrapper/mendel-max/ | M28: http://www.makerwise.com/3d-printer/kentstrapper/mendel-max/?tab=specs | O28: DC
A29: Isis3D | B29: Isis One - Dual Extruder | D29: 300*300*225 | E29: 20250000 | F29: 8441.01709 | G29: FFF | I29: 2399 | J29: USA | O29: Out of stock
A30: inDimension3 | B30: Glacier Peak - Dual Head Printer | D30: 160*160*120 | E30: 3072000 | F30: 740.2409639 | G30: FFF | I30: 4150 | J30: USA | O30: OOB
A31: Fablicator | B31: Fablicator | C31: 100 | D31: 178*178*178 | E31: 5639752 | F31: 1613.662947 | G31: FFF | H31: 1.75 | I31: 3495 | J31: USA | O31: OOB
A32: EZ 3D printers | B32: EZ 3D Printer-200 | C32: 100 | D32: 200*150*100 | E32: 3000000 | F32: 752.8230866 | G32: FFF | H32: 1.75 | I32: 3985 | J32: Taiwan | O32: DC
A33: EZ3D | B33: EZ 3D Printer-200H | C33: 100 | D33: 200*150*150 | E33: 4500000 | F33: 1001.112347 | G33: FFF | H33: 1.75 | I33: 4495 | J33: Taiwan | O33: DC
A34: Essential Dynamics | B34: Imagine 3D Printer | D34: 229*229 | E34: 52441 | F34: 13.81844532 | G34: FFF | I34: 3795 | J34: USA | O34: DC
A35: envisionTEC | B35: Perfactory Micro | D35: 40*30*100 | E35: 120000 | F35: 7.263922518 | G35: DLP | I35: 16520 | J35: Germany | O35: no pricing available
A36: Ecrewvis | B36: ECV-One | D36: 250*248*205 | E36: 12710000 | F36: 2333.394529 | G36: FFF | I36: 5447 | J36: France | K36: - | L36: http://www.ecrewvis.fr/language/en/ | O36: no pricing available
A37: Dreammaker | B37: dreammaker | D37: 200*200*200 | E37: 8000000 | F37: 7005.25394 | G37: FFF | I37: 1142 | J37: China | O37: DC
A38: Cubify | B38: CubeX 3D printer | D38: 275*265*240 | E38: 17490000 | F38: 6688.33652 | G38: FFF | H38: Proprietary | I38: 2615 | J38: USA | O38: DC
A39: 3D Systems | B39: Cube 2 | D39: 140*140*140 | E39: 2744000 | F39: 1961.401001 | G39: FFF | I39: 1399 | J39: USA | O39: DC
A40: Cubify | B40: CubeX | D40: 275*265*240 | E40: 17490000 | F40: 6248.660236 | G40: FFF | H40: Proprietary | I40: 2799 | J40: USA | K40: $ | L40: http://cubify.com/ | O40: DC
A41: Acuity Design | B41: Helix – 3D Printer | D41: 300*300*300 | E41: 27000000 | F41: 3750 | G41: FFF | I41: 7200 | J41: USA | O41: DC
A42: Acuity Design | B42: Acuity MendelMax 3D-printer | D42: 200*140*200 | E42: 5600000 | F42: 3111.111111 | G42: FFF | I42: 1800 | J42: USA | O42: DC
A43: 3ntr | B43: A4 printer | D43: 305*205*210 | E43: 13130250 | G43: FFF | J43: Italy | O43: no pricing available
A44: 3D Stuffmaker | B44: CREATOR Fully Assembled | D44: 110*130*105 | E44: 1501500 | F44: 1076.344086 | G44: FFF | I44: 1395 | J44: Australia | L44: http://www.3dstuffmaker.com/ | M44: http://www.3dstuffmaker.com/shop/specifications/core-spec.pdf | O44: DC

Sheet Prerelease
A1: Shop | B1: Country | C1: Manufacturer | D1: Model | E1: Assembled | F1: Speed | G1: Resolution | H1: Build envelope | I1: Build Volume | J1: Vol/$ | K1: Technology | L1: Price | M1: Lead time | N1: Availability | O1: Website
A2: Autodesk | B2: USA | C2: Autodesk | D2: Ember 3D | E2: Yes | F2: 72mm/hr | G2: 20(z)50(xy) | H2: - | I2: - | J2: =I2/L2 ->  | K2: SLA | L2: 5000 | M2: -
A3: Cobblebot | B3: USA | C3: Cobblebot | D3: Cobblebot 3D Printer | E3: Yes | H3: 381*381*381 | I3: =Eval(H3) -> 55306341 | J3: =I3/L3 -> 184971.0401 | K3: FFF | L3: 299 | M3: -
A4: Zion3D | B4: USA | C4: Zion3D | D4: Zion 16 | G4: 394*394*406 | H4: =Eval(G4) -> 63025816 | I4: =H4/L4 -> 32337.51462 | J4: FFF | L4: 1949 | M4: 2-3 Weeks
A5: Zion3D | B5: USA | C5: Zion3D | D5: Zion 8 | G5: 203*203*203 | H5: =Eval(G5) -> 8365427 | I5: =H5/L5 -> 12694.12291 | J5: FFF | L5: 659 | M5: 2-3 Weeks
A6: Stalactite | B6: Stalactite 102 | D6: 102*77*180 | E6: =Eval(D6) -> 1413720 | F6: =E6/I6 -> 707.2136068 | G6: DLP | I6: 1999 | J6: Barcelona
A7: Something 3D | B7: Tyrian | D7: 100*100*100 | E7: 1000000 | F7: 371.8854593 | G7: FFF | I7: 2689 | J7: Israel | L7: http://www.something3d.com/ | M7: http://www.something3d.com/our-printers#20
A8: New Matter | B8: MOD-t 3D printer | D8: 150*100*125 | E8: 1875000 | F8: 7530.120482 | G8: FFF | I8: 249 | J8: USA | L8: http://www.newmatter.com/ | M8: http://www.newmatter.com/detailed-specs
A9: Natural Machines | B9: Foodini | D9: 250*165*120 | E9: 4950000 | F9: 3807.692308 | G9: FFF | I9: 1300 | J9: Spain | L9: http://www.naturalmachines.com/
A10: mostfun | B10: MostFun Sail 3D | D10: 120*120*120 | E10: 1728000 | F10: 3756.521739 | G10: FFF | I10: 460 | J10: China | L10: http://www.mostfun.cc/en/
A11: MarkForged | B11: Mark One | D11: 305*160*160 | E11: 7808000 | F11: 1561.912382 | G11: FFF / CFF | I11: 4999 | J11: USA
A12: Makex | B12: Makex M-Ohe | D12: 140*110*170 | E12: 2618000 | F12: 1540.906416 | G12: DLP-SLA | I12: 1699 | J12: China | L12: http://makex.com/
A13: M3D | B13: The Micro 3D printer | D13: 109*113*116 | E13: 1428772 | F13: 4093.902579 | G13: FFF | I13: 349 | J13: USA
A14: kudo3D | B14: Titan 1 DLP | D14: 192*108*241 | E14: 4997376 | F14: 2631.582938 | G14: DLP-SLA | I14: 1899 | J14: USA
A15: KAST | B15: Kast3dp | D15: 150*200 | E15: 30000 | F15: 10 | G15: SLA | I15: 3000 | J15: China | L15: http://www.kast3d.com/
A16: Invent Apart | B16: RigidBot Big | D16: 300*400*254 | E16: 30480000 | F16: 40694.25901 | G16: FFF | I16: 749 | J16: USA | L16: https://www.inventapart.com
A17: Invent Apart | B17: RigidBot | D17: 254*254*254 | E17: 16387064 | F17: 32839.80762 | G17: FFF | I17: 499 | J17: USA | L17: https://www.inventapart.com | M17: https://www.inventapart.com/rigidbot_tech_info.php
A18: Hardcotton | B18: Hardcotton SLA 3D printer | D18: 140*140*200 | E18: 3920000 | F18: 4126.315789 | G18: SLA | I18: 950 | J18: Australia
A19: DWS Lab | B19: XFab 3D Laser Printer | C19: 10 | D19: ⌀180×180 | E19: =180*PI()*90^2 -> 4580442.089 | F19: 916.0884178 | G19: DLP | H19: N/A | I19: 5000 | J19: Italy
A20: Dreammaker | B20: Overlord | C20: 50 | E20: =Eval(D20) ->  | G20: FFF | H20: 1.75 | I20: 14900 | J20: China | K20: ￥ | L20: dreammaker.cc
A21: COBOT | B21: Desktop 3D Printer | C21: 50 | D21: 210*270*210 | E21: =Eval(D21) -> 11907000 | G21: FFF | H21: 1.75 | I21: ? | J21: Germany | K21: ? | L21: http://cobot.de/ | M21: http://cobot.de/details/
A22: Blue Printer | B22: SHS 3D Printer | D22: 160*200*140 | E22: =Eval(D22) -> 4480000 | F22: 339.7542848 | G22: SHS | I22: 13186 | J22: Denmark
A23: Mass Portal | B23: MP Delta20 | J23: Latvia | L23: http://massportal.com/
A24: Mass Portal | B24: Pharoah
A25: 3D by flow | L25: http://3dbyflow.com/flow/

Sheet NonPrinters
A1: Shop | B1: Country | C1: Manufacturer | D1: Model | E1: Assembled | F1: Speed | G1: Resolution | H1: Build envelope | I1: Build Volume | J1: Vol/$ | K1: Technology | L1: Price | M1: Lead time | N1: Availability
A2: LIX | B2: USA | C2: LIX | D2: Lix 3D pen | E2: Yes | H2: - | I2: - | J2: =I2/L2 ->  | K2: FFF | L2: 140 | M2: -
A3: 3doodler
A4: Choc Edge | B4: Choc Creator | C4: ? | D4: 175*175*70 | E4: =Eval(D4) -> 2143750 | F4: =E4/H4 -> 742.2957064 | G4: N/A | H4: 2888 | I4: UK | J4: £ | K4: http://chocedge.com/ | L4: http://chocedge.com/new-site/shop/index.php?id_product=11&controller=product#idOne

Sheet DIY Kits
A1: Shop | B1: Country | C1: Manufacturer | D1: Model | E1: Speed | F1: Resolution | G1: Build envelope | H1: Build Volume | I1: Vol/$ | J1: Technology | K1: Price | L1: Lead time | M1: Availability | N1: Website | O1: Shop
A2: re.3d.org | B2: USA | C2: re.3d.org | D2: Gigabot | G2: 600*600*600 | H2: =Eval(G2) -> 216000000 | I2: =H2/K2 -> 36302.52101 | J2: FFF | K2: 5950 | L2: In Stock
A3: Blue Eagle Labs | B3: USA | C3: Blue Eagle Labs | D3: Kossel Clear PLA Kit | G3: 279*279*279 | H3: =Eval(G3) -> 21717639 | I3: 33411.75231 | J3: FFF | K3: 650 | L3: 1 to 2 weeks
A4: Invent Apart | B4: USA | C4: Invent Apart | D4: RigidBot | G4: 254*254*254 | H4: =Eval(G4) -> 16387064 | I4: 32839.80762 | J4: FFF | K4: 499 | L4: -
A5: ZeGo | B5: USA | C5: zegorobotics | D5: zegorobotics | G5: ⌀300*230 | H5: =230*PI()*150^2 -> 16257741.98 | I5: 29613.37337 | J5: FFF | K5: 549 | L5: -
A6: SeeMeCNC | B6: USA | C6: SeeMeCNC | D6: Rostock MAX v2 3D Printer Kit | G6: ⌀280*349 | H6: =375*PI()*140^2 -> 23090706 | I6: =H6/K6 -> 23113.81982 | J6: FFF | K6: 999 | L6: 3 weeks
A7: SeeMeCNC | B7: USA | C7: SeeMeCNC | D7: Droplit | J7: DLP | K7: 399 | L7: 3 weeks
A8: GADGETS3D | B8: Poland | C8: GADGETS3D | D8: RepRap G3D | G8: 200*200*200 | H8: =Eval(G8) -> 8000000 | I8: 16032.06413 | J8: FFF | K8: 499 | L8: out of stock
A9: Makerfarm | B9: USA | C9: Makerfarm | D9: Prusa 8 "i3v Kit | G9: 203*203*203 | H9: 8365427 | I9: 15783.82453 | J9: FFF | K9: 530 | L9: 7 day
A10: Blue Eagle Labs | B10: USA | C10: Blue Eagle Labs | D10: Kossel Clear ABS Kit | G10: 200*200*279 | H10: 11160000 | I10: 14880 | J10: FFF | K10: 750 | L10: 1 to 2 weeks
A11: Pryntech | B11: USA | C11: Pryntech | D11: OpenSL v1.0 | G11: 305*305*203 | H11: 18884075 | I11: 14582.2973 | J11: SLA | K11: 1295 | L11: out of stock
A12: Active 3D | B12: UK | C12: Active 3D | D12: Active-X1 | G12: 270*220*220 | H12: 13068000 | I12: 14536.15128 | J12: FFF | K12: 899 | L12: in stock
A13: German RepRap GmbH | B13: Germany | C13: German RepRap Gmbh | D13: PRotos X400 | G13: 400*400*350 | H13: 56000000 | I13: 13813.51751 | J13: FFF | K13: 4054 | L13: -
A14: Eventorbot | B14: USA | C14: Eventorbot | D14: Eventorbot 3D printer | G14: 203*254*152 | H14: 7837424 | I14: 13512.8 | J14: FFF | K14: 580 | L14: -
A15: Makemendel | B15: India | C15: Makemendel | D15: RapidBot 3.0 Kit | G15: 220*220*165 | H15: 7986000 | I15: 12305.08475 | J15: FFF | K15: 649 | L15: 2-3 days
A16: Store Open Electronics | B16: Italy | C16: Store Open Electronics | D16: 3Drag-3D-printer-kit | G16: 200*200*200 | H16: 8000000 | I16: 12251.14855 | J16: FFF | K16: 653 | L16: in stock
A17: Mbot-3D | B17: China | C17: Mbot-3D | D17: MBot 3D Printer Plywood Kit | G17: 200*200*200 | H17: 8000000 | I17: 11958.14649 | J17: FFF | K17: 669 | L17: in stock
A18: Reprapsource | B18: Germany | C18: Reprapsource | D18: Prusa i3 Kit updated version | G18: 200*200*270 | H18: 10800000 | I18: 11320.75472 | J18: FFF | K18: 954 | L18: 2-3 weeks
A19: Mojreprap | B19: Poland | C19: Mojreprap | D19: Profabb GATE LE DIY Kit | G19: 190*220*230 | H19: 9614000 | I19: 11244.44444 | J19: FFF | K19: 855 | L19: in stock
A20: Mixshop | B20: Canada | C20: Mixshop | D20: Prusa Mendel Kit | G20: 195*195*140 | H20: 5323500 | I20: 11021.73913 | J20: FFF | K20: 483 | L20: 3 weeks
A21: Maker's Tool Works | B21: USA | C21: MendelMax | D21: MendelMax 2.0 Beta Kit | G21: 245*315*225 | H21: 17364375 | I21: 10886.75549 | J21: FFF | K21: 1595 | L21: 10 days
A22: 3D Stuffmaker | B22: Australia | C22: 3D Stuffmaker | D22: EVOLUTION Gen2 kit | G22: 200*200*200 | H22: 8000000 | I22: 10062.89308 | J22: FFF | K22: 795 | L22: in stock
A23: Conrad | B23: Netherlands | C23: Conrad | D23: Velleman K8200 | G23: 200*200*200 | H23: 8000000 | I23: 9791.921665 | J23: FFF | K23: 817 | L23: in stock
A24: RepRapPro | B24: UK | C24: RepRapPro | D24: Ormerod Kit | G24: 200*200*200 | H24: 8000000 | I24: 9445.100354 | J24: FFF | K24: 847 | L24: 2-5days
A25: MyMatics | B25: Netherlands | C25: MyMatics | D25: Mamba3D | G25: 200*200*200 | H25: 8000000 | I25: 9411.764706 | J25: FFF | K25: 850 | L25: -
A26: Mixshop | B26: Canada | C26: Mixshop | D26: Mix G1 Plus Kit | G26: 160*160*160 | H26: 4096000 | I26: 9002.197802 | J26: FFF | K26: 455 | L26: 3 weeks
A27: eMotion Tech | B27: France | C27: eMotion Tech | D27: Prusa Mendel I3 | G27: 200*200*200 | H27: 8000000 | I27: 8938.547486 | J27: FFF | K27: 895 | L27: -
A28: 3D Botic | B28: USA | C28: 3D Botic | D28: MendelBot MM152 | F28: 100 | G28: 200*200*200 | H28: 8000000 | I28: 8898.776418 | J28: FFF | K28: 899 | N28: https://3dbotic.com/ | O28: https://3dbotic.com/shop/
A29: NW RepRap | B29: USA | C29: NW RepRap | D29: Prusa i3 Complete Kit | G29: 190*190*190 | H29: 6859000 | I29: 8584.480601 | J29: FFF | K29: 799 | L29: -
A30: Mendel Parts | B30: Netherlands | C30: Mendel Parts | D30: Orca v0.43 Unassembled | G30: 250*220*190 | H30: 10450000 | I30: 8565.57377 | J30: FFF | K30: 1220 | L30: 4-6 weeks
A31: MindKits | B31: New Zealand | C31: MindKits | D31: DiamondMind 3D Printer V2 | G31: 260*250*170 | H31: 11050000 | I31: 8473.92638 | J31: FFF | K31: 1304 | L31: in stock
A32: Reprapsource | B32: Germany | C32: Reprapsource | D32: Prusa i3 Kit Single Frame Version | G32: 200*200*200 | H32: 8000000 | I32: 7532.956685 | J32: FFF | K32: 1062 | L32: 2-3 weeks
A33: Felix Printers | B33: Netherlands | C33: Felix Printers | D33: 3d Felix 3.0 Kit | G33: 225*205*235 | H33: 10839375 | I33: 7235.897864 | J33: FFF | K33: 1498 | L33: 1 weeks
A34: German RepRap GmbH | B34: Germany | C34: German RepRap | D34: X400CE | G34: 400*400*350 | H34: 56000000 | I34: 7195.168958 | J34: FFF | K34: 7783 | L34: -
A35: Tinkerine Studio | B35: Canada | C35: Tinkerine Studio | D35: Ditto Plus 3D printer | G35: 210*185*230 | H35: 8935500 | I35: =H35/K35 -> 7154.123299 | J35: FFF | K35: 1249 | L35: 3-5 weeks
A36: Makergear | B36: USA | C36: Makerqear | D36: M2 3D Printer- Kit | G36: 203*254*203 | H36: 10467086 | I36: 7096.329492 | J36: FFF | K36: 1475 | L36: 2-4 weeks
A37: Extru3D | B37: France | C37: Multistation | D37: Extru3D V2 | G37: 275*205*210 | H37: 11838750 | I37: 7030.13658 | J37: FFF | K37: 1684 | L37: -
A38: 3D Botic | B38: USA | C38: 3D Botic | D38: MendelBot MM151 | F38: 100 | G38: 200*200*200 | H38: 8000000 | I38: 6672.226856 | J38: FFF | K38: 1199 | N38: https://3dbotic.com/ | O38: https://3dbotic.com/shop/
A39: Ultimaker | B39: Netherlands | C39: Ultimaker Shop | D39: Ultimaker Original | G39: 210*210*205 | H39: 9040500 | I39: 6671.95572 | J39: FFF | K39: 1355 | L39: in stock
A40: Eckertech | B40: Canada | C40: Eckertech | D40: ecksbot 2014 DIY kit | G40: 200*200*135 | H40: =Eval(G40) -> 5400000 | I40: 6650.246305 | J40: FFF | K40: 812 | L40: in stock
A41: Sharebot | B41: Italy | C41: Sharebot | D41: Mounting Kit Pro | G41: 200*200*200 | H41: 8000000 | I41: 6498.781478 | J41: FFF | K41: 1231 | L41: 30 days
A42: Fabbster | B42: Germany | C42: Fabbster | D42: Fabbster kit | G42: 230*230*210 | H42: 11109000 | I42: 6171.666667 | J42: SDM | K42: 1800 | L42: N/A
A43: Deezmaker | B43: USA | C43: Deezmaker | D43: Bukobot 8 v2 Kit X3 | G43: 200*200*200 | H43: 8000000 | I43: 6158.583526 | J43: FFF | K43: 1299 | L43: 1-2 weeks
A44: German RepRap GmbH | B44: Germany | C44: German RepRap GMBH | D44: V2.0 3D-Drucker | G44: 230*230*125 | H44: 6612500 | I44: 6072.084481 | J44: FFF | K44: 1089 | L44: 4 weeks
A45: Airwolf 3D | B45: USA | C45: Airwolf 3D | D45: AW3D HD | G45: 300*200*300 | H45: 18000000 | I45: 6010.016694 | J45: FFF | K45: 2995 | L45: 24 hours
A46: RepRapPro | B46: UK | C46: RepRapPro | D46: Tricolour Mendel | G46: 210*190*140 | H46: 5586000 | I46: 5961.579509 | J46: FFF | K46: 937 | L46: 2-5days
A47: Airwolf 3D | B47: USA | C47: Airwolf 3D | D47: AW3D XL | G47: 300*200*178 | H47: 10680000 | I47: 5635.883905 | J47: FFF | K47: 1895 | L47: 10 days
A48: Omni3d | B48: Poland | C48: Omni3d | D48: RapCraft 1.3 Kit | G48: 210*210*240 | H48: 10584000 | I48: 5356.275304 | J48: FFF | K48: 1976 | L48: in stock
A49: Deezmaker | B49: USA | C49: Deezmaker | D49: Bukobot 8 v2 Duo Kit (Dual Extruders) | G49: 200*200*200 | H49: 8000000 | I49: 5336.891261 | J49: FFF | K49: 1499 | L49: 1-2 weeks
A50: MaukCC | B50: Netherlands | C50: MaukCC | D50: CartesioW V0.9 | G50: 200*400*200 | H50: 16000000 | I50: 4645.760743 | J50: FFF | K50: 3444 | L50: 3-6 weeks
A51: Jelwek | B51: Poland | C51: Jelwek | D51: Mark34 | G51: 140*155*105 | H51: 2278500 | I51: 4640.529532 | K51: 491 | L51: 14 days
A52: Weistek | B52: China | C52: Weistek | D52: IdeaWerk Kit | G52: 150*150*140 | H52: 3150000 | I52: 4506.437768 | J52: FFF | K52: 699 | L52: -
A53: Open Source Romote Control | B53: Cyrus | C53: Open Source Romote Control | D53: Ilios HD SLA 3D Printer Kit | G53: 300*300*200 | H53: 18000000 | I53: 4303.131724 | J53: SLA | K53: 4183 | L53: -
A54: York 3D Printers | B54: UK | C54: York 3D Printers | D54: Buildabot 'Revolution' 3d Printer Kit | G54: 210*210*160 | H54: 7056000 | I54: 4150.588235 | J54: FFF | K54: 1700 | L54: 3-5 weeks
A55: Spiderbot | B55: FRANCE | C55: Spiderbot | D55: SpiderBot Eco Kit v1.2 | G55: 180*180*180 | H55: 5832000 | I55: 3705.209657 | J55: FFF | K55: 1574 | L55: 2 weeks
A56: mUVe 3D LLC | B56: USA | C56: mUVe 3D LLC | D56: mUVe 1 3D Printer Classic | G56: 145*145*185 | H56: 3889625 | I56: 3539.240218 | J56: SLA | K56: 1099 | L56: 2-3 weeks
A57: Portabee | B57: Singapore | C57: Portabee | D57: Portabee Kit | G57: 120*120*120 | H57: 1728000 | I57: 3490.909091 | J57: FFF | K57: 495 | L57: 1 week
A58: Printrbot | B58: USA | C58: Printrbot | D58: New Simple Maker’s Kit | G58: 102*102*114 | H58: 1186056 | I58: 3398.441261 | J58: FFF | K58: 349 | L58: 1-2 week
A59: RepRapPro | B59: UK | C59: RepRapPro | D59: Huxley Full Kit | G59: 140*140*110 | H59: 2156000 | I59: 3384.615385 | J59: FFF | K59: 637 | L59: 2-5days
A60: Spiderbot | B60: FRANCE | C60: Spiderbot | D60: SpiderBot Full Kit v1.2 | G60: 180*180*180 | H60: 5832000 | I60: 3274.564851 | J60: FFF | K60: 1781 | L60: 2 weeks
A61: Metamáquina | B61: Brazil | C61: Metamáquina | D61: Metamáquina 2 | G61: 200*200*150 | H61: 6000000 | I61: 3198.294243 | J61: FFF | K61: 1876 | L61: -
A62: CB-Printer | B62: Poland | C62: CB-Printer | D62: 3D Printer CB-printer KIT | G62: 200*200*180 | H62: 7200000 | I62: 3025.210084 | J62: FFF | K62: 2380 | L62: -
A63: Deezmaker | B63: USA | C63: Deezmaker | D63: Bukito Portable Mini Printer Kit | G63: 140*150*125 | H63: 2625000 | I63: 2919.911012 | J63: FFF | K63: 899 | L63: In stock
A64: MaukCC | B64: Netherlands | C64: MaukCC | D64: Cartesio M V0.9 | G64: 200*200*200 | H64: 8000000 | I64: 2869.440459 | J64: FFF | K64: 2788 | L64: 3-6 weeks
A65: Tinkerine Studio | B65: Canada | C65: Tinkerine Studio | D65: Litto 3D printer | G65: 135*120*175 | H65: 2835000 | I65: 2837.837838 | J65: FFF | K65: 999 | L65: 4-6 weeks
A66: mUVe 3D LLC | B66: USA | C66: mUVe | D66: mUVe 1 | G66: 145*145*185 | H66: 3889625 | I66: 2594.813209 | J66: SLA | K66: 1499 | L66: -
A67: Hyrel 3D | B67: USA | C67: Hyrel 3D | D67: Professional E5 | G67: 200*200*200 | H67: 8000000 | I67: =H67/K67 -> 2584.814216 | J67: FFF | K67: 3095 | L67: -
A68: IT IS 3D | B68: UK | C68: IT IS 3D | D68: Maxit | G68: 210*160*100 | H68: 3360000 | I68: 2086.956522 | K68: 1610 | L68: -
A69: Kühling&Kühling | B69: Germany | C69: Kühling&Kühling | D69: RepRap Industrial 3D printer | G69: 200*200*200 | H69: 8000000 | I69: 1478.1966 | J69: FFF | K69: 5412 | L69: 2014-10-13
A70: mUVe 3D LLC | B70: USA | C70: mUVe | D70: mUVe 1 DLP | G70: 128*128*80 | H70: 1310720 | I70: 1312.032032 | J70: DLP | K70: 999 | L70: -
A71: MarkForged | B71: USA | C71: MarkForged | D71: Mark One Developer Kit | G71: 305*160*160 | H71: 7808000 | I71: 887.3735652 | J71: FFF | K71: 8799 | L71: -
A72: B9Creations | B72: USA | C72: B9Creations | D72: B9Creator 3D printer KIT | G72: 77*102*203 | H72: =Eval(G72) -> 1594362 | I72: 533.2314381 | J72: DLP | K72: 2990 | L72: -
A73: Boots Industries | B73: Canada | C73: Boots Industries | D73: BI V2.5 3D Printer | G73: 300*300 | H73: 90000 | I73: 100.1112347 | J73: FFF | K73: 899 | L73: -
A74: WASP Project | B74: WASP Project | C74: DeltaWASP Open | G74: 260*195*210 | H74: =Eval(G74) -> 10647000 | I74: =H74/#REF! ->  | J74: FFF | K74: 840 | M74: 4 weeks Italy / 6 weeks elsewhere | O74: http://www.wasproject.it/ | P74: http://www.personalfab.it/shop/delta-open
A75: 3novatica | B75: Gate | I75: 6763.77 | J75: Poland | K75: zł | L75: http://3novatica.com/en/

Sheet Non-FFF
A1: Manufacturer | B1: Model | C1: Resolution | D1: Envelope (mm) | E1: Volume (mm³) | F1: Vol/$ | G1: Filament | H1: Price | I1: Country | J1: Curr | K1: Website | L1: Specs
A2: B9Creations | B2: B9Creator v1.2 | C2: ? | D2: 77*102*203 | E2: =Eval(D2) -> 1594362 | F2: =E2/I2 -> 290.1477707 | G2: DLP | H2: N/A | I2: 5495 | J2: USA | K2: $ | L2: http://b9creator.com/ | M2: http://b9creator.com/product-category/printers/
A3: QSQM Corporation | B3: New Uncia | C3: 100 | D3: 102*77*180 | E3: 1413720 | F3: 1415.135135 | G3: DLP | H3: N/A | I3: 999 | J3: China | K3: $ | L3: http://uncia3d.com/ | M3: http://uncia3d.myshopify.com/
A4: Robot Factory | B4: 3DLPrinter | C4: ? | D4: 102*78*160 | E4: 1272960 | G4: DLP | I4: RFQ | J4: Italy | K4: ? | L4: http://www.robotfactory.it/ | M4: http://www.robotfactory.it/Cnc_index3DLPrinter.htm
A5: Robot Factory | B5: 3DLPrinter HD2.0 | C5: ? | D5: 102*78*160 | E5: 1272960 | G5: DLP | I5: RFQ | J5: Italy | K5: ? | L5: http://www.robotfactory.it/ | M5: http://www.robotfactory.it/Cnc_index3DLPrinter-HD.htm
A6: Sedgwick | B6: 3D DLP Printer v2.0 | C6: 100 | D6: 75*75*120 | E6: 675000 | F6: 423.1974922 | G6: DLP | H6: N/A | I6: 1595 | J6: USA | K6: $ | L6: http://sedgwick3d.com/ | M6: http://sedgwick3d.com/p/9/sedgwick-3d-dlp-printer-ready-to-print
A7: Trimaker | B7: T.black | C7: 177 | D7: 170*135*180 | E7: 4131000 | F7: 413.2549706 | G7: DLP | H7: N/A | I7: 9996.25 | J7: Argentina | K7: $ | L7: http://www.trimaker.com/ | M7: http://www.trimaker.com/en/t-black/
A8: Solidscape | B8: Max2 | C8: 25 | D8: 152.4*152.4*101.6 | E8: 2359737.216 | G8: MJ | H8: N/A | I8: RFQ | J8: USA | K8: ? | L8: http://www.solid-scape.com/ | M8: http://www.solid-scape.com/sites/default/files/products/pdf/usa_paper_size_max2_data_sheet_5-1-2014.pdf
A9: Solidscape | B9: Pro | C9: 25 | D9: 152.4*152.4*101.7 | E9: 2362059.792 | G9: MJ | H9: N/A | I9: RFQ | J9: USA | K9: ? | L9: http://www.solid-scape.com/ | M9: http://www.solid-scape.com/sites/default/files/public/3z-pro-data-sheet-12-20-2012-solidscape_1.pdf
A10: Solidscape | B10: Studio | C10: 25 | D10: 152.4*152.4*50.8 | E10: 1179868.608 | G10: MJ | H10: N/A | I10: RFQ | J10: USA | K10: ? | L10: http://www.solid-scape.com/ | M10: http://www.solid-scape.com/sites/default/files/public/3z-studio-data-sheet-12-20-2012-solidscape_0.pdf
A11: Solidscape | B11: Lab | C11: 25 | D11: 152.4*152.4*50.8 | E11: 1179868.608 | G11: MJ | H11: N/A | I11: RFQ | J11: USA | K11: ? | L11: http://www.solid-scape.com/ | M11: http://www.solid-scape.com/sites/default/files/public/3z-lab-data-sheet-12-20-12.pdf
A12: Mcor Technologies | B12: Matrix 300+ | C12: 100 | D12: 256*169*150 | E12: 6489600 | G12: SDL | H12: Paper | I12: RFQ | J12: UK | K12: ? | L12: http://mcortechnologies.com/ | M12: http://mcortechnologies.com/wp-content/uploads/2013/05/MCOR-BRO-01052013-EU_low.pdf
A13: Mcor Technologies | B13: Mcor IRIS | C13: 100 | D13: 256*169*150 | E13: 6489600 | G13: SDL | H13: Paper | I13: RFQ | J13: UK | K13: ? | L13: http://mcortechnologies.com/ | M13: http://mcortechnologies.com/wp-content/uploads/2013/05/MCOR-BRO-01052013-EU_low.pdf
A14: Asiga | B14: Freeform Pico Plus39 | C14: ? | D14: 50*31.2*75 | E14: 117000 | F14: 13.01446051 | G14: SLA | H14: N/A | I14: 8990 | J14: USA | K14: $ | L14: https://www.asiga.com/ | M14: https://www.asiga.com/media/main/files/Pico%20Brochure_us_en.pdf
A15: Asiga | B15: Freeform Pico | C15: ? | D15: 40*30*75 | E15: 90000 | F15: 12.87553648 | G15: SLA | H15: N/A | I15: 6990 | J15: USA | K15: $ | L15: https://www.asiga.com/ | M15: https://www.asiga.com/media/main/files/Pico%20Brochure_us_en.pdf
A16: Asiga | B16: Freeform Pico Plus33 | C16: ? | D16: 42.5*26.5*76 | E16: 85595 | F16: 9.521134594 | G16: SLA | H16: N/A | I16: 8990 | J16: USA | K16: $ | L16: https://www.asiga.com/ | M16: https://www.asiga.com/media/main/files/Pico%20Brochure_us_en.pdf
A17: Asiga | B17: Pro75 | C17: ? | D17: 144*81*200 | E17: 2332800 | F17: 93.34933974 | G17: SLA | H17: N/A | I17: 24990 | J17: USA | K17: $ | L17: https://www.asiga.com/ | M17: https://www.asiga.com/media/main/files/Pro%20Brochure_us_en.pdf
A18: Asiga | B18: Pro50 | C18: ? | D18: 96*54*200 | E18: 1036800 | F18: 41.48859544 | G18: SLA | H18: N/A | I18: 24990 | J18: USA | K18: $ | L18: https://www.asiga.com/ | M18: https://www.asiga.com/media/main/files/Pro%20Brochure_us_en.pdf
A19: 3D Systems | B19: ProJet 1200 | C19: ? | D19: 43*27*150 | E19: 174150 | F19: 35.54081633 | G19: SLA | H19: Proprietary | I19: 4900 | J19: USA | K19: $ | L19: http://cubify.com/ | M19: http://cubify.com/en/ProJet
A20: Formlabs | B20: Form One+ | C20: 25 | D20: 125*125*165 | E20: 2578125 | F20: 781.4868142 | G20: SLA | H20: N/A | I20: 3299 | J20: USA | K20: $ | L20: http://formlabs.com/ | M20: http://formlabs.com/en/products/form-1-plus/
A21: Old World Laboratories | B21: OWL Nano | C21: 100 | D21: 150*150*200 | E21: 4500000 | G21: SLA | H21: N/A | I21: RFQ | J21: USA | K21: ? | L21: http://oldworldlabs.com/ | M21: http://oldworldlabs.com/product/owl-nano
A22: Rays Opitcs | B22: MiiCraft 3D printer | C22: ? | D22: 43*27*180 | E22: 208980 | F22: 90.90039147 | G22: SLA | H22: N/A | I22: 2299 | J22: Taiwan | K22: RFQ | L22: http://www.miicraft.com/ | M22: http://www.miicraft.com/products/
A23: Stratasys | B23: Objet500 Connex3 | C23: ? | D23: 490*390*200 | E23: 38220000 | G23: Triple-jetting | I23: RFQ | J23: Israel | K23: ? | L23: stratasys.com | M23: http://www.stratasys.com/3d-printers/design-series/precision/objet500-connex3
A24: 3D Systems | B24: ProJet 3510SD | L24: http://www.3dsystems.com/sites/www.3dsystems.com/files/projet_3500_realwax_us-web.pdf
A25: 3D Systems | B25: ProJet 3510HD | L25: http://www.3dsystems.com/sites/www.3dsystems.com/files/projet_3500_realwax_us-web.pdf
A26: 3D Systems | B26: ProJet 3510HDPlus | L26: http://www.3dsystems.com/sites/www.3dsystems.com/files/projet_3500_realwax_us-web.pdf
A27: 3D Systems | B27: ProJet 3500 HDMax | L27: http://www.3dsystems.com/sites/www.3dsystems.com/files/projet_3500_realwax_us-web.pdf
A28: 3D Systems | B28: ProJet 5000
A29: 3D Systems | B29: ProJet 5500X
A30: 3D Systems | B30: ProJet 6000 SD
A31: 3D Systems | B31: ProJet 7000 SD
A32: 3D Systems | B32: ProJet 6000 HD
A33: 3D Systems | B33: ProJet 7000 HD
A34: 3D Systems | B34: ProJet 3510 CP | L34: http://www.3dsystems.com/sites/www.3dsystems.com/files/projet_3500_realwax_us-web.pdf
A35: 3D Systems | B35: ProJet 3510 CPX | L35: http://www.3dsystems.com/sites/www.3dsystems.com/files/projet_3500_realwax_us-web.pdf
A36: 3D Systems | B36: ProJet 3510 CPXPlus | L36: http://www.3dsystems.com/sites/www.3dsystems.com/files/projet_3500_realwax_us-web.pdf
A37: 3D Systems | B37: ProJet 3500 CPXMax | L37: http://www.3dsystems.com/sites/www.3dsystems.com/files/projet_3500_realwax_us-web.pdf
A38: 3D Systems | B38: ProJet 360
A39: 3D Systems | B39: ProJet 4500
A40: 3D Systems | B40: ProJet 460Plus
A41: 3D Systems | B41: ProJet 660Pro
A42: 3D Systems | B42: ProJet 860Pro
A43: 3D Systems | B43: ProJet 3510 DP
A44: 3D Systems | B44: ProJet 3510 MP
A45: 3D Systems | B45: ProJet 6000 MP
A46: 3D Systems | B46: ProJet 7000 MP
A47: 3D Systems | B47: iPro 8000
A48: 3D Systems | B48: iPro 8000 MP
A49: 3D Systems | B49: ProX 800
A50: 3D Systems | B50: ProX 950
A51: 3D Systems | B51: ProX 500
A52: 3D Systems | B52: ProX 500Plus
A53: 3D Systems | B53: sPro 140
A54: 3D Systems | B54: sPro 230
A55: 3D Systems | B55: sPro 60 HD
A56: 3D Systems | B56: ProX 100
A57: 3D Systems | B57: ProX 100 Dental
A58: 3D Systems | B58: ProX 200
A59: 3D Systems | B59: ProX 200 Dental
A60: 3D Systems | B60: ProX 300
A61: 3D Systems | B61: ProX 400
A62: 3D Systems | B62: VX1000
A63: 3D Systems | B63: VX500

Sheet No Pricing
A1: Manufacturer | B1: Model | C1: Resolution | D1: Envelope (mm) | E1: Volume (mm³) | F1: Vol/$ | G1: Filament | H1: Price | I1: Country | J1: Curr | K1: Website | L1: Specs
A2: Zbot | B2: FDM20-2525 | C2: 100 | D2: 250*250*200 | E2: =Eval(D2) -> 12500000 | F2: ? | G2: ? | H2: ? | I2: China | J2: ? | K2: http://www.zbot.cc/en/ | L2: http://www.zbot.cc/en/showproducts.asp?SortId=426&toid=72
A3: Zbot | B3: FDM35-1515 | C3: 100 | D3: 150*150*350 | E3: 7875000 | F3: ? | G3: ? | H3: ? | I3: China | J3: ? | K3: http://www.zbot.cc/en/ | L3: http://www.zbot.cc/en/showproducts.asp?SortId=430&toid=72
A4: Zbot | B4: i1 | C4: 100 | D4: 150*150*140 | E4: 3150000 | F4: ? | G4: ? | H4: ? | I4: China | J4: ? | K4: http://www.zbot.cc/en/ | L4: http://www.zbot.cc/en/showproducts.asp?SortId=435&toid=72
A5: Zbot | B5: i1S | C5: 100 | D5: 150*150*140 | E5: 3150000 | F5: ? | G5: ? | H5: ? | I5: China | J5: ? | K5: http://www.zbot.cc/en/ | L5: http://www.zbot.cc/en/showproducts.asp?SortId=424&toid=72
A6: Zbot | B6: i2 | C6: 100 | D6: 250*150*140 | E6: 5250000 | F6: ? | G6: ? | H6: ? | I6: China | J6: ? | K6: http://www.zbot.cc/en/ | L6: http://www.zbot.cc/en/showproducts.asp?SortId=434&toid=72
A7: Zbot | B7: i2S | C7: 100 | D7: 250*150*140 | E7: 5250000 | F7: ? | G7: ? | H7: ? | I7: China | J7: ? | K7: http://www.zbot.cc/en/ | L7: http://www.zbot.cc/en/showproducts.asp?SortId=423&toid=72
A8: ROKIT | B8: 3DISON AEP | C8: 25 | D8: 290*205*255 | E8: 15159750 | F8: =E8/H8 ->  | G8: 1.75 | H8: RFQ | I8: Korean | J8: ? | K8: http://en.3disonprinter.com/ | L8: http://www.3disonprinter.com/product-h700.php
A9: ROKIT | B9: 3DISON H700 | C9: 50 | D9: 290*205*680 | E9: 40426000 | G9: 1.75 | H9: RFQ | I9: Korean | J9: ? | K9: http://en.3disonprinter.com/ | L9: http://www.3disonprinter.com/product-h700.php
A10: ROKIT | B10: 3DISON MULTI | C10: 25 | D10: 270*148*160 | E10: 6393600 | G10: 1.75 | H10: RFQ | I10: Korean | J10: ? | K10: http://en.3disonprinter.com/ | L10: http://www.3disonprinter.com/product-multi.php
A11: ROKIT | B11: 3DISON PRO | C11: 25 | D11: 190*205*245 | E11: 9542750 | G11: 1.75 | H11: RFQ | I11: Korean | J11: ? | K11: http://en.3disonprinter.com/ | L11: http://www.3disonprinter.com/product-pro.php
A12: ROKIT | B12: 3DISON+ | C12: 50 | D12: 225*145*150 | E12: 4893750 | G12: 1.75 | H12: RFQ | I12: Korean | J12: ? | K12: http://en.3disonprinter.com/ | L12: http://en.3disonprinter.com/product-plus.php
A13: Robot Factory | B13: 3D-One | C13: 100 | D13: 245*245*245 | E13: 14706125 | G13: ? | H13: RFQ | I13: Italy | J13: ? | K13: http://www.robotfactory.it/ | L13: http://www.robotfactory.it/
A14: Plastic Scribbler | B14: Asterid 1000HB | C14: 95 | D14: 204*204*204 | E14: 8489664 | G14: ? | H14: RFQ | I14: USA | J14: $ | K14: http://www.plasticscribbler.com/ | L14: http://www.plasticscribbler.com/store/Asterid-1000HB-3D-Printer
A15: Plastic Scribbler | B15: Asterid Model 1000S | C15: 95 | D15: 204*204*204 | E15: 8489664 | G15: ? | H15: RFQ | I15: USA | J15: $ | K15: http://www.plasticscribbler.com/ | L15: http://www.plasticscribbler.com/store/Asterid-1000S-3D-Printer
A16: ATOM 3dp | B16: Atom 3D-printer | C16: ? | D16: ⌀210*310 | E16: =310*PI()*105^2 -> 10737178.29 | G16: ? | H16: RFQ | I16: Taiwan | J16: ? | K16: http://atom3dp.com/ | L16: http://atom3dp.com/product-1/
A17: be3D | B17: DeeRed | C17: 100 | D17: 400*400*800 | E17: =Eval(D17) -> 128000000 | G17: 1.75 | H17: RFQ | I17: Czech Republic | J17: € | K17: http://www.be3d.cz/ | L17: http://www.be3d.cz/en/shop/3-deegreen
A18: Shining3D | B18: EinStart | C18: 100 | D18: 160*160*160 | E18: =Eval(Table3[[#This Row],[Envelope (mm)]]) -> 10560000 | F18: ='Non-FFF'!E138/'Non-FFF'!I138 ->  | G18: 1.75 | H18: RFQ | I18: China | J18: ? | K18: http://www.shining3d.com/index.html | L18: http://www.shining3dscanner.com/en-us/product_einstart_3d_printer.html
A19: Omni3d | B19: Factory 2.0 | C19: 40 | D19: 500*500*500 | E19: =Eval(D19) -> 125000000 | F19: =E19/H19 ->  | G19: 1.75 | H19: RFQ | I19: Poland | J19: ? | K19: http://omni3d.com/en/ | L19: http://omni3d.com/en/sklep/3d-printers/factory-1-0-3/
A20: JER Education | B20: HL100A | C20: 200 | D20: 140*140*135 | E20: =Eval(Table3[[#This Row],[Envelope (mm)]]) -> 19500000 | F20: ='Non-FFF'!E138/'Non-FFF'!I138 ->  | G20: 1.75 | H20: RFQ | I20: China | J20: ? | K20: http://www.jereducation.com/ | L20: http://www.jereducation.com/yw/cpzx_show.asp?PID=257
A21: JER Education | B21: HL200A | C21: 290 | D21: 200*150*100 | E21: =Eval(Table3[[#This Row],[Envelope (mm)]]) -> 8000000 | F21: ='Non-FFF'!E138/'Non-FFF'!I138 ->  | G21: 1.75 | H21: RFQ | I21: China | J21: ? | K21: http://www.jereducation.com/ | L21: http://www.jereducation.com/yw/cpzx_show.asp?PID=256
A22: FusionTech | B22: IdeaPrinter | C22: 20 | D22: 305*205*575 | E22: =Eval(Table3[[#This Row],[Envelope (mm)]]) -> 9975000 | F22: ='Non-FFF'!E143/'Non-FFF'!I143 ->  | G22: 1.75 | H22: RFQ | I22: China | J22: ? | K22: http://www.ideaprinter.cn/ | L22: http://www.ideaprinter.cn/en/3DPrinter.html
A23: Manli | B23: MXPrint | C23: 130 | D23: 140*140*151 | E23: =Eval(Table3[[#This Row],[Envelope (mm)]]) -> 7600000 | F23: ='Non-FFF'!E142/'Non-FFF'!I142 ->  | G23: 1.75 | H23: RFQ | I23: China | J23: ? | K23: http://www.manli.com/ | L23: http://www.manli.com/en/product/mxprint-3d
A24: botobjects | B24: ProDesk 3D | C24: 25 | D24: 275*275*300 | E24: =Eval(D24) -> 22687500 | F24: =E24/H24 ->  | G24: 1.75 | H24: RFQ | I24: USA | J24: ? | K24: http://botobjects.com/ | L24: http://botobjects.com/specification
A25: Omni3d | B25: RapCraft 1.4 | C25: 40 | D25: 210*210*240 | E25: =Eval(D25) -> 10584000 | F25: =E25/H25 ->  | G25: 1.75 | H25: RFQ | I25: Poland | J25: ? | K25: http://omni3d.com/en/ | L25: http://omni3d.com/en/sklep/3d-printers/rapcraft-1-4/
A26: JER Education | B26: RL200A | C26: 150 | D26: 225*145*150 | E26: =Eval(Table3[[#This Row],[Envelope (mm)]]) -> 13832000 | F26: ='Non-FFF'!E138/'Non-FFF'!I138 ->  | G26: 1.75 | H26: RFQ | I26: China | J26: ? | K26: http://www.jereducation.com/ | L26: http://www.jereducation.com/yw/cpzx_show.asp?PID=261
A27: Manli | B27: SimplyPrint 3D | C27: 130 | D27: 140*140*150 | E27: =Eval(Table3[[#This Row],[Envelope (mm)]]) -> 6000000 | F27: ='Non-FFF'!E142/'Non-FFF'!I142 ->  | G27: 1.75 | H27: RFQ | I27: China | J27: ? | K27: http://www.manli.com/ | L27: http://www.manli.com/en/product/simplyprint-3d
A28: BigRep | B28: BigRep ONE.2 | C28: 100 | D28: 1060*1070*1105 | E28: =Eval(D28) -> 1253291000 | F28: =E28/H28 -> 27957.14827 | G28: ? | H28: 44829 | I28: Germany | J28: ? | K28: bigrep.com | L28: http://bigrep.com/1/wp-content/uploads/sites/2/2014/01/BigRep-ONE-2-Brochure-web.pdf

Sheet Industrial
A2: Stratasys | B2: uPrint SE Plus | C2: 254 | D2: 203*203*152 | E2: =Eval(D2) -> 6263768 | F2: =E2/H2 -> 299.7018182 | G2: Proprietary | H2: 20900 | I2: USA | J2: $ | K2: stratasys.com | L2: http://www.stratasys.com/3d-printers/idea-series/uprint-se-plus
A3: Stratasys | B3: uPrint SE | C3: 254 | D3: 203*152*152 | E3: =Eval(D3) -> 4690112 | F3: =E3/H3 -> 294.9755975 | G3: Proprietary | H3: 15900 | I3: USA | J3: $ | K3: statasys.com | L3: http://www.stratasys.com/3d-printers/idea-series/uprint-se
A4: Stratasys | B4: Mojo | C4: 178 | D4: 127*127*127 | E4: =Eval(D4) -> 2048383 | F4: =E4/H4 -> 206.9073737 | G4: Proprietary | H4: 9900 | I4: USA | J4: $ | K4: stratasys.com | L4: http://www.stratasys.com/3d-printers/idea-series/mojo
